[Event "*** Titled Tuesday Blitz"]
[Site "Chess.com"]
[Date "2020.04.21"]
[Round "9"]
[White "cassoulet"]
[Black "SARGISMV"]
[Result "0-1"]
[WhiteElo "2611"]
[BlackElo "2445"]
[TimeControl "180+1"]
[EndTime "11:50:33 PDT"]
[Termination "SARGISMV won by checkmate"]

1. e4 {[%clk 0:03:00.9]} 1... e6 {[%clk 0:02:57]} 2. d4 {[%clk 0:03:00.6]} 2...
d5 {[%clk 0:02:55.5]} 3. Nc3 {[%clk 0:03:01.2]} 3... Bb4 {[%clk 0:02:54.6]} 4.
e5 {[%clk 0:02:59.1]} 4... c5 {[%clk 0:02:54.7]} 5. a3 {[%clk 0:02:59.3]} 5...
Bxc3+ {[%clk 0:02:54.6]} 6. bxc3 {[%clk 0:03:00.2]} 6... Ne7 {[%clk 0:02:55.1]}
7. Qg4 {[%clk 0:03:00.3]} 7... O-O {[%clk 0:02:54.1]} 8. Bd3 {[%clk 0:02:57.1]}
8... Nbc6 {[%clk 0:02:53.7]} 9. Bd2 {[%clk 0:02:57]} 9... c4 {[%clk 0:02:39.6]}
10. Be2 {[%clk 0:02:56.9]} 10... f5 {[%clk 0:02:40.1]} 11. Qg3 {[%clk
0:02:53.9]} 11... Qa5 {[%clk 0:02:37.5]} 12. h4 {[%clk 0:02:51.7]} 12... Qa4
{[%clk 0:02:37.8]} 13. Kd1 {[%clk 0:02:51.2]} 13... b5 {[%clk 0:02:31.6]} 14. h5
{[%clk 0:02:46.4]} 14... b4 {[%clk 0:02:30.5]} 15. h6 {[%clk 0:02:38.5]} 15...
g6 {[%clk 0:02:22.7]} 16. cxb4 {[%clk 0:02:29.9]} 16... Nxd4 {[%clk 0:02:20.9]}
17. Qc3 {[%clk 0:02:29.9]} 17... Nec6 {[%clk 0:02:14.3]} 18. Nf3 {[%clk
0:02:29.2]} 18... Nb5 {[%clk 0:02:07.9]} 19. Qb2 {[%clk 0:02:04.7]} 19... a5
{[%clk 0:02:07.3]} 20. bxa5 {[%clk 0:01:57.4]} 20... Rb8 {[%clk 0:02:04.6]} 21.
Bb4 {[%clk 0:01:47.8]} 21... Nxa3 {[%clk 0:01:31.9]} 22. Qxa3 {[%clk 0:01:26.6]}
22... Qxb4 {[%clk 0:01:27.9]} 23. Qxb4 {[%clk 0:01:26.5]} 23... Rxb4 {[%clk
0:01:28.8]} 24. Kd2 {[%clk 0:01:24.8]} 24... Ba6 {[%clk 0:01:17.4]} 25. Kc3
{[%clk 0:01:23.9]} 25... Rfb8 {[%clk 0:01:12.7]} 26. Rh4 {[%clk 0:01:21.5]}
26... Rb1 {[%clk 0:01:00]} 27. Rh1 {[%clk 0:01:18.7]} 27... R1b4 {[%clk
0:00:51.9]} 28. Rhd1 {[%clk 0:01:15.1]} 28... Kf8 {[%clk 0:00:48.7]} 29. Ng5
{[%clk 0:01:14.5]} 29... Ke7 {[%clk 0:00:48.7]} 30. f4 {[%clk 0:01:11.8]} 30...
d4+ {[%clk 0:00:45.5]} 31. Rxd4 {[%clk 0:01:11.9]} 31... Nxd4 {[%clk 0:00:45.8]}
32. Kxd4 {[%clk 0:01:12.8]} 32... c3+ {[%clk 0:00:44.7]} 33. Ke3 {[%clk
0:01:13.2]} 33... Bxe2 {[%clk 0:00:36.2]} 34. Kxe2 {[%clk 0:01:14.1]} 34... Rxf4
{[%clk 0:00:36.5]} 35. a6 {[%clk 0:01:11.2]} 35... Rg4 {[%clk 0:00:33.4]} 36. a7
{[%clk 0:01:03.1]} 36... Ra8 {[%clk 0:00:33.5]} 37. Nxh7 {[%clk 0:01:02.9]}
37... Re4+ {[%clk 0:00:32.9]} 38. Kd3 {[%clk 0:01:01.8]} 38... Rxe5 {[%clk
0:00:32.8]} 39. Ng5 {[%clk 0:01:00.2]} 39... Kf6 {[%clk 0:00:29]} 40. Nf3 {[%clk
0:00:55.7]} 40... Rd5+ {[%clk 0:00:28.8]} 41. Kxc3 {[%clk 0:00:55.8]} 41... Rd7
{[%clk 0:00:28.4]} 42. Rh1 {[%clk 0:00:45.4]} 42... Raxa7 {[%clk 0:00:26.8]} 43.
Kb2 {[%clk 0:00:44.9]} 43... Rh7 {[%clk 0:00:26]} 44. Nd4 {[%clk 0:00:40.7]}
44... e5 {[%clk 0:00:24.8]} 45. Ne2 {[%clk 0:00:35.8]} 45... Kg5 {[%clk
0:00:22.3]} 46. Re1 {[%clk 0:00:31.6]} 46... Kxh6 {[%clk 0:00:19.4]} 47. Ng1
{[%clk 0:00:32.5]} 47... e4 {[%clk 0:00:19.1]} 48. Nh3 {[%clk 0:00:32.6]} 48...
Kg7 {[%clk 0:00:19.4]} 49. Nf4 {[%clk 0:00:32.8]} 49... Kf6 {[%clk 0:00:19]} 50.
g4 {[%clk 0:00:32.7]} 50... Kg5 {[%clk 0:00:18.1]} 51. Ne6+ {[%clk 0:00:31.2]}
51... Kxg4 {[%clk 0:00:18.2]} 52. Rg1+ {[%clk 0:00:32.1]} 52... Kf3 {[%clk
0:00:18.5]} 53. Ng5+ {[%clk 0:00:31.4]} 53... Ke3 {[%clk 0:00:18]} 54. Nxh7
{[%clk 0:00:31.3]} 54... Rxh7 {[%clk 0:00:17.1]} 55. Rxg6 {[%clk 0:00:32.2]}
55... f4 {[%clk 0:00:17.3]} 56. Kc1 {[%clk 0:00:32.2]} 56... f3 {[%clk
0:00:15.4]} 57. Rg1 {[%clk 0:00:31.4]} 57... f2 {[%clk 0:00:13.8]} 58. Rd1
{[%clk 0:00:31.5]} 58... Ke2 {[%clk 0:00:12.1]} 59. Rd2+ {[%clk 0:00:31.4]}
59... Kf3 {[%clk 0:00:12.6]} 60. Rd1 {[%clk 0:00:32.3]} 60... e3 {[%clk
0:00:13]} 61. Rd8 {[%clk 0:00:32.4]} 61... f1=Q+ {[%clk 0:00:12.4]} 62. Kb2
{[%clk 0:00:32.9]} 62... Ke2 {[%clk 0:00:13.3]} 63. c4 {[%clk 0:00:31.8]} 63...
Rb7+ {[%clk 0:00:13.2]} 64. Kc3 {[%clk 0:00:32.1]} 64... Qa1+ {[%clk 0:00:12.9]}
65. Kc2 {[%clk 0:00:31.7]} 65... Qb2# {[%clk 0:00:12.5]} 0-1

[Event "*** Titled Tuesday Blitz"]
[Site "Chess.com"]
[Date "2020.04.21"]
[Round "9"]
[White "2nd_life"]
[Black "GM4life"]
[Result "1-0"]
[WhiteElo "2407"]
[BlackElo "2195"]
[TimeControl "180+1"]
[EndTime "11:50:33 PDT"]
[Termination "2nd_life won on time"]

1. e4 {[%clk 0:03:00.9]} 1... c5 {[%clk 0:02:59.4]} 2. Nf3 {[%clk 0:03:00.8]}
2... d6 {[%clk 0:02:58.8]} 3. d4 {[%clk 0:03:00.8]} 3... cxd4 {[%clk 0:02:59.2]}
4. Nxd4 {[%clk 0:03:01.7]} 4... Nf6 {[%clk 0:02:59.5]} 5. Nc3 {[%clk 0:03:02.1]}
5... a6 {[%clk 0:03:00]} 6. Be3 {[%clk 0:03:02.4]} 6... e5 {[%clk 0:02:59.9]} 7.
Nb3 {[%clk 0:03:02.3]} 7... Be7 {[%clk 0:02:59.9]} 8. f3 {[%clk 0:03:02.1]} 8...
Be6 {[%clk 0:02:59.8]} 9. Qd2 {[%clk 0:02:56]} 9... O-O {[%clk 0:02:59.8]} 10.
Nd5 {[%clk 0:02:51.8]} 10... Bxd5 {[%clk 0:02:59.4]} 11. exd5 {[%clk 0:02:51.7]}
11... a5 {[%clk 0:02:55]} 12. Be2 {[%clk 0:02:47.7]} 12... a4 {[%clk 0:02:53]}
13. Nc1 {[%clk 0:02:43]} 13... Nbd7 {[%clk 0:02:49.6]} 14. c4 {[%clk 0:02:32.7]}
14... a3 {[%clk 0:02:48.3]} 15. b4 {[%clk 0:02:27.6]} 15... Nb6 {[%clk
0:02:38.1]} 16. Nb3 {[%clk 0:02:24]} 16... Rc8 {[%clk 0:02:30.5]} 17. Rc1 {[%clk
0:02:23.2]} 17... Nbd7 {[%clk 0:02:00.4]} 18. O-O {[%clk 0:02:21]} 18... Ne8
{[%clk 0:01:57.9]} 19. c5 {[%clk 0:02:09.1]} 19... f5 {[%clk 0:01:54.2]} 20. c6
{[%clk 0:02:02.3]} 20... bxc6 {[%clk 0:01:52.5]} 21. dxc6 {[%clk 0:02:02.4]}
21... Ndf6 {[%clk 0:01:51.8]} 22. b5 {[%clk 0:01:58.5]} 22... d5 {[%clk
0:01:49.9]} 23. b6 {[%clk 0:01:50.5]} 23... d4 {[%clk 0:01:45.2]} 24. Nxd4
{[%clk 0:01:45.4]} 24... exd4 {[%clk 0:01:43.2]} 25. Qxd4 {[%clk 0:01:45]} 25...
Nd6 {[%clk 0:01:18.8]} 26. Bc4+ {[%clk 0:01:17]} 26... Nxc4 {[%clk 0:01:12.4]}
27. Qxc4+ {[%clk 0:01:16.9]} 27... Kh8 {[%clk 0:01:11.9]} 28. Rfd1 {[%clk
0:01:15.8]} 28... Qe8 {[%clk 0:01:05.1]} 29. c7 {[%clk 0:01:15.4]} 29... Bd6
{[%clk 0:00:47]} 30. Bd4 {[%clk 0:00:58.4]} 30... Bf4 {[%clk 0:00:45]} 31. Bxf6
{[%clk 0:00:36.8]} 31... Bxc1 {[%clk 0:00:35]} 32. b7 {[%clk 0:00:33]} 32...
Be3+ {[%clk 0:00:21.6]} 33. Kh1 {[%clk 0:00:27.8]} 33... gxf6 {[%clk 0:00:21.6]}
34. Rb1 {[%clk 0:00:11.1]} 34... Rxc7 {[%clk 0:00:19.6]} 35. Qxc7 {[%clk
0:00:10.5]} 35... Qb8 {[%clk 0:00:20]} 36. Qe7 {[%clk 0:00:07.2]} 36... Ba7
{[%clk 0:00:17.3]} 37. Rd1 {[%clk 0:00:06.8]} 37... Qe8 {[%clk 0:00:13.1]} 38.
Qxe8 {[%clk 0:00:03]} 38... Rxe8 {[%clk 0:00:12.3]} 39. Rc1 {[%clk 0:00:03.9]}
39... Rb8 {[%clk 0:00:09.6]} 40. Rc7 {[%clk 0:00:03.7]} 40... f4 {[%clk
0:00:06.4]} 41. h4 {[%clk 0:00:03.5]} 41... h5 {[%clk 0:00:04.7]} 42. Kh2 {[%clk
0:00:03.6]} 42... Rxb7 {[%clk 0:00:02.1]} 43. Rxb7 {[%clk 0:00:03.6]} 43... Bf2
{[%clk 0:00:02.7]} 44. Kh3 {[%clk 0:00:03.1]} 44... Bd4 {[%clk 0:00:02.1]} 45.
Rb3 {[%clk 0:00:03]} 45... Bb2 {[%clk 0:00:02.1]} 46. Rb4 {[%clk 0:00:02.6]}
46... Kg7 {[%clk 0:00:01.9]} 47. Rxf4 {[%clk 0:00:02.1]} 47... Kg6 {[%clk
0:00:02.8]} 48. Rb4 {[%clk 0:00:02.3]} 48... Kf5 {[%clk 0:00:02.6]} 49. Rb3
{[%clk 0:00:02.6]} 49... Ke5 {[%clk 0:00:02.5]} 50. g4 {[%clk 0:00:03.2]} 1-0

[Event "*** Titled Tuesday Blitz"]
[Site "Chess.com"]
[Date "2020.04.21"]
[Round "9"]
[White "Paralinch"]
[Black "IMTominho"]
[Result "1/2-1/2"]
[WhiteElo "2955"]
[BlackElo "2808"]
[TimeControl "180+1"]
[EndTime "11:50:34 PDT"]
[Termination "Game drawn - insufficient material"]

1. e4 {[%clk 0:03:00.9]} 1... e5 {[%clk 0:02:59.6]} 2. Nf3 {[%clk 0:03:01.1]}
2... Nf6 {[%clk 0:02:55.5]} 3. Nxe5 {[%clk 0:02:58.5]} 3... d6 {[%clk
0:02:55.1]} 4. Nf3 {[%clk 0:02:59.1]} 4... Nxe4 {[%clk 0:02:55.2]} 5. d3 {[%clk
0:02:59.8]} 5... Nf6 {[%clk 0:02:55]} 6. d4 {[%clk 0:03:00.5]} 6... Be7 {[%clk
0:02:55.3]} 7. Bd3 {[%clk 0:03:00.5]} 7... O-O {[%clk 0:02:56.2]} 8. O-O {[%clk
0:03:01]} 8... Bg4 {[%clk 0:02:55.3]} 9. Bg5 {[%clk 0:03:01.1]} 9... Nbd7 {[%clk
0:02:54.7]} 10. Nbd2 {[%clk 0:03:01.3]} 10... Re8 {[%clk 0:02:54.7]} 11. c3
{[%clk 0:03:01.3]} 11... c6 {[%clk 0:02:54.9]} 12. Qc2 {[%clk 0:03:00.7]} 12...
Bh5 {[%clk 0:02:45.6]} 13. Rfe1 {[%clk 0:03:00.5]} 13... Bg6 {[%clk 0:02:45.9]}
14. Bxg6 {[%clk 0:03:00.4]} 14... hxg6 {[%clk 0:02:46.8]} 15. Re2 {[%clk
0:03:00.8]} 15... Qc7 {[%clk 0:02:45.6]} 16. Rae1 {[%clk 0:03:00.3]} 16... Bf8
{[%clk 0:02:46.1]} 17. h3 {[%clk 0:02:47.9]} 17... Rxe2 {[%clk 0:02:43.2]} 18.
Rxe2 {[%clk 0:02:48.8]} 18... Re8 {[%clk 0:02:42.3]} 19. Rxe8 {[%clk 0:02:48.7]}
19... Nxe8 {[%clk 0:02:43.2]} 20. Qe4 {[%clk 0:02:47.9]} 20... Nef6 {[%clk
0:02:42.6]} 21. Bxf6 {[%clk 0:02:41.8]} 21... Nxf6 {[%clk 0:02:42.4]} 22. Qe2
{[%clk 0:02:37.5]} 22... b5 {[%clk 0:02:41.6]} 23. Ne4 {[%clk 0:02:34.8]} 23...
Nd5 {[%clk 0:02:38.2]} 24. g3 {[%clk 0:02:33.5]} 24... a5 {[%clk 0:02:37]} 25.
h4 {[%clk 0:02:21.4]} 25... a4 {[%clk 0:02:36.8]} 26. Neg5 {[%clk 0:02:21.6]}
26... Qe7 {[%clk 0:02:30.8]} 27. Qd3 {[%clk 0:02:16.9]} 27... Qf6 {[%clk
0:02:24]} 28. Kf1 {[%clk 0:01:59.8]} 28... Be7 {[%clk 0:02:21.3]} 29. Ke2 {[%clk
0:01:58]} 29... Qf5 {[%clk 0:02:20.7]} 30. Qxf5 {[%clk 0:01:53.4]} 30... gxf5
{[%clk 0:02:21.6]} 31. Kd3 {[%clk 0:01:54]} 31... Nf6 {[%clk 0:02:17.9]} 32. Nh2
{[%clk 0:01:49.2]} 32... g6 {[%clk 0:02:15.1]} 33. b3 {[%clk 0:01:49]} 33...
axb3 {[%clk 0:02:14.2]} 34. axb3 {[%clk 0:01:49.9]} 34... Kf8 {[%clk 0:02:12.5]}
35. c4 {[%clk 0:01:50.1]} 35... bxc4+ {[%clk 0:02:12.1]} 36. bxc4 {[%clk
0:01:51]} 36... Ke8 {[%clk 0:02:11.7]} 37. Ke2 {[%clk 0:01:37.3]} 37... Nd7
{[%clk 0:02:09.1]} 38. Nhf3 {[%clk 0:01:31.8]} 38... Bf6 {[%clk 0:02:08.4]} 39.
Kd3 {[%clk 0:01:31.1]} 39... Bg7 {[%clk 0:02:07.2]} 40. Nh3 {[%clk 0:01:29.3]}
40... Nf6 {[%clk 0:02:06.4]} 41. Nfg5 {[%clk 0:01:24.2]} 41... Bh6 {[%clk
0:02:01.3]} 42. f3 {[%clk 0:01:17.4]} 42... Nh5 {[%clk 0:02:00.7]} 43. g4 {[%clk
0:01:16.8]} 43... fxg4 {[%clk 0:02:01.6]} 44. fxg4 {[%clk 0:01:17.7]} 44... Nf6
{[%clk 0:02:01.5]} 45. Nxf7 {[%clk 0:01:01.1]} 45... Kxf7 {[%clk 0:02:02.4]} 46.
g5 {[%clk 0:01:01.5]} 46... Ng4 {[%clk 0:01:30.1]} 47. gxh6 {[%clk 0:01:01.4]}
47... Nxh6 {[%clk 0:01:31]} 48. Ke4 {[%clk 0:00:41.8]} 48... Nf5 {[%clk
0:01:22.1]} 49. Ng5+ {[%clk 0:00:41.9]} 49... Kf6 {[%clk 0:01:21.1]} 50. Nf3
{[%clk 0:00:42.8]} 50... Ke6 {[%clk 0:01:19.1]} 51. Kf4 {[%clk 0:00:38.6]} 51...
Kf6 {[%clk 0:01:18.5]} 52. Ke4 {[%clk 0:00:38.3]} 52... Ng3+ {[%clk 0:01:18.5]}
53. Kf4 {[%clk 0:00:38.4]} 53... Nh5+ {[%clk 0:01:17.3]} 54. Kg4 {[%clk
0:00:37.7]} 54... Ng7 {[%clk 0:01:16]} 55. Kf4 {[%clk 0:00:36.4]} 55... Ne6+
{[%clk 0:01:08.7]} 56. Kg4 {[%clk 0:00:35]} 56... c5 {[%clk 0:00:52.4]} 57. dxc5
{[%clk 0:00:34.6]} 57... Nxc5 {[%clk 0:00:47.6]} 58. Nd4 {[%clk 0:00:33.9]}
58... Ke5 {[%clk 0:00:46.7]} 59. Nb5 {[%clk 0:00:33.9]} 59... Ne4 {[%clk
0:00:42.1]} 60. Nc7 {[%clk 0:00:20.7]} 60... Kd4 {[%clk 0:00:28.5]} 61. Nb5+
{[%clk 0:00:18.7]} 61... Kxc4 {[%clk 0:00:21.5]} 62. Nxd6+ {[%clk 0:00:18.6]}
62... Nxd6 {[%clk 0:00:22.4]} 63. Kg5 {[%clk 0:00:19.2]} 63... Nf5 {[%clk
0:00:22.5]} 64. h5 {[%clk 0:00:18.5]} 64... gxh5 {[%clk 0:00:22]} 65. Kxh5
{[%clk 0:00:19.1]} 1/2-1/2

[Event "*** Titled Tuesday Blitz"]
[Site "Chess.com"]
[Date "2020.04.21"]
[Round "9"]
[White "TV27"]
[Black "Corpescador"]
[Result "0-1"]
[WhiteElo "2150"]
[BlackElo "2375"]
[TimeControl "180+1"]
[EndTime "11:50:34 PDT"]
[Termination "Corpescador won by resignation"]

1. c4 {[%clk 0:03:00.9]} 1... e5 {[%clk 0:02:41.9]} 2. Nc3 {[%clk 0:03:00]} 2...
Nf6 {[%clk 0:02:39]} 3. e4 {[%clk 0:02:59.3]} 3... Bc5 {[%clk 0:02:36.3]} 4. d3
{[%clk 0:02:57.1]} 4... Nc6 {[%clk 0:02:35.5]} 5. Be3 {[%clk 0:02:55.8]} 5...
Bd4 {[%clk 0:02:31]} 6. g3 {[%clk 0:02:54.3]} 6... d6 {[%clk 0:02:29.9]} 7. Bg2
{[%clk 0:02:53.6]} 7... h5 {[%clk 0:02:26.6]} 8. Bxd4 {[%clk 0:02:50.4]} 8...
exd4 {[%clk 0:02:20.7]} 9. Nd5 {[%clk 0:02:49.4]} 9... h4 {[%clk 0:02:20.1]} 10.
Qf3 {[%clk 0:02:48.2]} 10... Nxd5 {[%clk 0:02:09.8]} 11. exd5 {[%clk 0:02:47.2]}
11... Ne5 {[%clk 0:02:09.6]} 12. Qe2 {[%clk 0:02:43]} 12... Bg4 {[%clk
0:01:49.4]} 13. f3 {[%clk 0:02:40.5]} 13... h3 {[%clk 0:01:38.1]} 14. Bf1 {[%clk
0:02:35.7]} 14... Bf5 {[%clk 0:01:31.1]} 15. O-O-O {[%clk 0:02:28.1]} 15... Kf8
{[%clk 0:01:19.2]} 16. g4 {[%clk 0:02:22.2]} 16... Bd7 {[%clk 0:01:15]} 17. Nxh3
{[%clk 0:02:18]} 17... Qf6 {[%clk 0:01:08.8]} 18. Bg2 {[%clk 0:02:03.8]} 18...
Re8 {[%clk 0:00:52.4]} 19. Qd2 {[%clk 0:02:01.1]} 19... Nxf3 {[%clk 0:00:49.4]}
20. Bxf3 {[%clk 0:02:00.4]} 20... Rxh3 {[%clk 0:00:44.2]} 21. Bg2 {[%clk
0:01:49.7]} 21... Rhe3 {[%clk 0:00:41.1]} 22. Rhf1 {[%clk 0:01:45.9]} 22... Qh4
{[%clk 0:00:37.6]} 23. Be4 {[%clk 0:01:41.8]} 23... Bxg4 {[%clk 0:00:33.2]} 24.
Rde1 {[%clk 0:01:34.2]} 24... Rxe1+ {[%clk 0:00:29]} 25. Rxe1 {[%clk 0:01:33]}
25... f5 {[%clk 0:00:26.2]} 26. Rf1 {[%clk 0:01:32.5]} 26... Re5 {[%clk
0:00:23.9]} 27. Bf3 {[%clk 0:01:12.2]} 27... Bxf3 {[%clk 0:00:21.1]} 28. Rxf3
{[%clk 0:01:11.8]} 28... Qe1+ {[%clk 0:00:19.8]} 29. Kc2 {[%clk 0:01:10.2]}
29... Qxd2+ {[%clk 0:00:19.3]} 30. Kxd2 {[%clk 0:01:10]} 30... Ke7 {[%clk
0:00:18]} 31. Rh3 {[%clk 0:01:08.2]} 31... Kf6 {[%clk 0:00:17.9]} 32. Rh8 {[%clk
0:01:06.7]} 32... f4 {[%clk 0:00:17.4]} 33. Rc8 {[%clk 0:01:05]} 33... Re7
{[%clk 0:00:17.2]} 34. Rf8+ {[%clk 0:01:03.1]} 34... Rf7 {[%clk 0:00:16.2]} 35.
Re8 {[%clk 0:01:01.8]} 35... Kg5 {[%clk 0:00:15.9]} 36. Ke2 {[%clk 0:01:00.2]}
36... Kg4 {[%clk 0:00:15.8]} 37. Kf2 {[%clk 0:00:59.5]} 37... Rf5 {[%clk
0:00:14.5]} 38. Re7 {[%clk 0:00:57.7]} 38... g5 {[%clk 0:00:14.4]} 39. Rxc7
{[%clk 0:00:55.5]} 39... Re5 {[%clk 0:00:14.7]} 40. Rxb7 {[%clk 0:00:52.4]}
40... Re3 {[%clk 0:00:14.5]} 41. Rf7 {[%clk 0:00:49.1]} 41... Rxd3 {[%clk
0:00:14.3]} 42. c5 {[%clk 0:00:48.7]} 42... dxc5 {[%clk 0:00:10.2]} 43. d6
{[%clk 0:00:48]} 43... Rd2+ {[%clk 0:00:10.5]} 44. Ke1 {[%clk 0:00:47.2]} 44...
Rxb2 {[%clk 0:00:10.4]} 45. d7 {[%clk 0:00:46.7]} 45... Rb8 {[%clk 0:00:10.4]}
46. Re7 {[%clk 0:00:45.6]} 46... Rd8 {[%clk 0:00:10.5]} 47. Kd2 {[%clk
0:00:45.3]} 47... Kf3 {[%clk 0:00:10.2]} 48. Rf7 {[%clk 0:00:43]} 48... c4
{[%clk 0:00:09.9]} 49. Rf5 {[%clk 0:00:41.1]} 49... g4 {[%clk 0:00:09.9]} 50.
Rd5 {[%clk 0:00:39.7]} 50... Ke4 {[%clk 0:00:10.1]} 51. Rd6 {[%clk 0:00:38]}
51... Ke5 {[%clk 0:00:10.3]} 52. Rg6 {[%clk 0:00:36.5]} 52... Rxd7 {[%clk
0:00:10.5]} 53. Rxg4 {[%clk 0:00:36.1]} 53... Ke4 {[%clk 0:00:11.2]} 54. Rg8
{[%clk 0:00:35.2]} 54... c3+ {[%clk 0:00:11.5]} 55. Kc2 {[%clk 0:00:34.5]} 55...
d3+ {[%clk 0:00:11.4]} 56. Kc1 {[%clk 0:00:33.7]} 56... d2+ {[%clk 0:00:12.3]}
57. Kd1 {[%clk 0:00:33.5]} 57... c2+ {[%clk 0:00:12.6]} 58. Kxc2 {[%clk
0:00:33.4]} 58... d1=Q+ {[%clk 0:00:12.8]} 59. Kc3 {[%clk 0:00:33.4]} 59... Rd3+
{[%clk 0:00:12]} 60. Kc4 {[%clk 0:00:32.9]} 60... Qc2+ {[%clk 0:00:12]} 61. Kb4
{[%clk 0:00:32.3]} 61... Rd4+ {[%clk 0:00:11.8]} 62. Kb5 {[%clk 0:00:31.1]}
62... Qc4+ {[%clk 0:00:11.5]} 63. Ka5 {[%clk 0:00:30.1]} 63... Qxg8 {[%clk
0:00:11.4]} 0-1

[Event "*** Titled Tuesday Blitz"]
[Site "Chess.com"]
[Date "2020.04.21"]
[Round "9"]
[White "ErikRonka"]
[Black "MarcoRiehle"]
[Result "1/2-1/2"]
[WhiteElo "2425"]
[BlackElo "2588"]
[TimeControl "180+1"]
[EndTime "11:50:36 PDT"]
[Termination "Game drawn by repetition"]

1. e4 {[%clk 0:03:00.9]} 1... e5 {[%clk 0:02:55.3]} 2. Nf3 {[%clk 0:03:00.9]}
2... Nf6 {[%clk 0:02:54.6]} 3. Nc3 {[%clk 0:03:00.3]} 3... Nc6 {[%clk
0:02:48.5]} 4. d4 {[%clk 0:03:00]} 4... exd4 {[%clk 0:02:47.1]} 5. Nxd4 {[%clk
0:03:00.9]} 5... Bb4 {[%clk 0:02:46.4]} 6. Nxc6 {[%clk 0:03:01.3]} 6... bxc6
{[%clk 0:02:47.3]} 7. Bd3 {[%clk 0:03:01.9]} 7... d5 {[%clk 0:02:47.5]} 8. Bd2
{[%clk 0:03:02.4]} 8... O-O {[%clk 0:02:46.7]} 9. O-O {[%clk 0:03:02.4]} 9...
Re8 {[%clk 0:02:46.4]} 10. Nxd5 {[%clk 0:03:01.6]} 10... Nxd5 {[%clk 0:02:43.9]}
11. exd5 {[%clk 0:03:00.6]} 11... Bxd2 {[%clk 0:02:43.8]} 12. Qxd2 {[%clk
0:03:01.1]} 12... cxd5 {[%clk 0:02:43.8]} 13. Rfe1 {[%clk 0:02:59.9]} 13... Be6
{[%clk 0:02:43.3]} 14. b4 {[%clk 0:02:59.3]} 14... Rb8 {[%clk 0:02:39.2]} 15. a3
{[%clk 0:02:54.7]} 15... Qf6 {[%clk 0:02:35.8]} 16. h3 {[%clk 0:02:39.5]} 16...
Bf5 {[%clk 0:02:31.9]} 17. Rxe8+ {[%clk 0:02:32.5]} 17... Rxe8 {[%clk
0:02:32.8]} 18. Re1 {[%clk 0:02:32.4]} 18... Rxe1+ {[%clk 0:02:21.3]} 19. Qxe1
{[%clk 0:02:33.3]} 19... g6 {[%clk 0:02:21.8]} 20. Bxf5 {[%clk 0:02:14.5]} 20...
Qxf5 {[%clk 0:02:20.8]} 21. Qc3 {[%clk 0:02:15.1]} 21... Qf4 {[%clk 0:02:14.1]}
22. g3 {[%clk 0:02:04.2]} 22... Qd6 {[%clk 0:02:06.5]} 23. Qd4 {[%clk
0:01:54.2]} 23... a6 {[%clk 0:02:05.9]} 24. c4 {[%clk 0:01:43.8]} 24... dxc4
{[%clk 0:02:02.9]} 25. Qxc4 {[%clk 0:01:44.1]} 25... h5 {[%clk 0:02:01.8]} 26.
h4 {[%clk 0:01:40.7]} 26... Kg7 {[%clk 0:01:55.9]} 27. Kg2 {[%clk 0:01:34.9]}
27... Qb6 {[%clk 0:01:50.3]} 28. a4 {[%clk 0:01:25.8]} 28... Qb7+ {[%clk
0:01:40.6]} 29. Kg1 {[%clk 0:01:24.8]} 29... Qb6 {[%clk 0:01:39.8]} 30. a5
{[%clk 0:01:18]} 30... Qd6 {[%clk 0:01:35.3]} 31. b5 {[%clk 0:01:10.3]} 31...
axb5 {[%clk 0:01:35]} 32. Qxb5 {[%clk 0:01:11.2]} 32... Qd1+ {[%clk 0:01:35.1]}
33. Kg2 {[%clk 0:01:08.3]} 33... Qe1 {[%clk 0:01:29.3]} 34. a6 {[%clk
0:00:41.8]} 34... Qe4+ {[%clk 0:01:28.7]} 35. Kh2 {[%clk 0:00:40]} 35... Qd4
{[%clk 0:01:15.7]} 36. Kg1 {[%clk 0:00:29.1]} 36... Qa1+ {[%clk 0:01:12.9]} 37.
Kg2 {[%clk 0:00:27.9]} 37... Kh7 {[%clk 0:01:10.1]} 38. Qc4 {[%clk 0:00:26.1]}
38... Kg8 {[%clk 0:01:00.9]} 39. Qc6 {[%clk 0:00:22.9]} 39... Qa5 {[%clk
0:00:58.1]} 40. Qb7 {[%clk 0:00:21.5]} 40... c6 {[%clk 0:00:58.5]} 41. a7 {[%clk
0:00:20.1]} 41... Qd5+ {[%clk 0:00:57.2]} 42. Kh2 {[%clk 0:00:19.5]} 42... Qd2
{[%clk 0:00:57]} 43. Qb8+ {[%clk 0:00:16.5]} 43... Kg7 {[%clk 0:00:57.6]} 44.
Qe5+ {[%clk 0:00:16]} 44... Kh7 {[%clk 0:00:55.5]} 45. Qf4 {[%clk 0:00:13.9]}
45... Qa2 {[%clk 0:00:55.5]} 46. Qe3 {[%clk 0:00:12.2]} 46... Qa5 {[%clk
0:00:32.5]} 47. Qe7 {[%clk 0:00:08.5]} 47... Qa2 {[%clk 0:00:31.4]} 48. Qe3
{[%clk 0:00:06.1]} 48... Qa5 {[%clk 0:00:30.8]} 49. Kg2 {[%clk 0:00:06.4]} 49...
Qd5+ {[%clk 0:00:30.4]} 50. Kg1 {[%clk 0:00:06.9]} 50... Qd1+ {[%clk 0:00:26.7]}
51. Kh2 {[%clk 0:00:07.1]} 51... Qa4 {[%clk 0:00:26.6]} 52. Qe7 {[%clk
0:00:06.7]} 52... Qa2 {[%clk 0:00:26.6]} 53. Kg2 {[%clk 0:00:05.5]} 53... Qd5+
{[%clk 0:00:26.1]} 54. Kh2 {[%clk 0:00:05.3]} 54... Qa2 {[%clk 0:00:25.7]}
1/2-1/2